fUSD/lending_fUSD_20240117
["ID","MTS","AMOUNT","RATE_DAILY","PERIOD"]
[311941880,1705510730265,5057.17156636,0.00018034,2]
[311941883,1705510832408,151.0,0.00023,7]
[311941884,1705510832875,151.0,0.00023287,7]
[311941885,1705510833740,206.0,0.00018452,2]
[311941886,1705510834022,206.0,0.00026762,13]
[311941887,1705510843324,436.47,0.0001806,2]
[311941893,1705510910887,500.0,0.00021917,7]
[311941894,1705510941650,151.0,0.00023,7]
[311941897,1705511004975,151.0,0.00023,7]
[311941898,1705511005253,151.0,0.00023287,7]
[311941930,1705511179364,284.9,0.00023287,7]
[311941993,1705511292056,1400.0,0.000218,7]
[311941994,1705511294152,2100.0,0.000219,7]
[311941995,1705511296252,2900.0,0.000227,8]
[311941996,1705511298663,3600.0,0.000228,8]
[311941997,1705511300482,700.0,0.000229,8]
[311941998,1705511302584,700.0,0.000249,9]
[311941999,1705511302954,151.0,0.00023013,7]
[311942004,1705511320752,453.25,0.00017659,2]
[311942016,1705511431770,-384.58030079,0.00018622,2]
[311942017,1705511431780,-202.6537974,0.00018623,2]
[311942018,1705511431790,-235.12703746,0.00018624,2]
[311942019,1705511431800,-3126.06494598,0.00018624,2]
[311942020,1705511431809,-150.0,0.00018625,2]
[311942021,1705511431819,-1914.85650932,0.00018625,2]
[311942022,1705511431829,-2020.14907703,0.00018625,2]
[311942023,1705511431838,-1761.56833002,0.0001865,2]
[311942024,1705511431865,-1011.07346855,0.0001865,2]
[311942025,1705511431930,-1165.618,0.0001865,2]
[311942026,1705511431942,-1270.66,0.0001865,2]
[311942027,1705511431953,-9976.08020143,0.0001865,2]
[311942028,1705511431962,-5411.232222,0.00018688,2]
[311942029,1705511431971,-171.94541592,0.00018688,2]
[311942030,1705511431981,-155.51974414,0.00018692,2]
[311942031,1705511431992,-574.59,0.00018763,2]
[311942032,1705511432003,-711.56,0.00018777,2]
[311942033,1705511432013,-499.99,0.00018777,2]
[311942034,1705511432023,-2526.70299999,0.00018777,2]
[311942035,1705511432032,-473.73898387,0.00018786,2]
[311942036,1705511432042,-601947.17337059,0.00018787,2]
[311942037,1705511432052,-381293.571584,0.00018788,2]
[311942038,1705511432061,-150.81,0.00018806,2]
[311942039,1705511432071,-250.0,0.00018898,2]
[311942040,1705511432081,-700.0,0.000189,6]
[311942041,1705511432090,-150.81,0.00018946,2]
[311942042,1705511432099,-156.42,0.00019002,2]
[311942043,1705511432109,-150.81,0.00019086,2]
[311942044,1705511432118,-150.0,0.00019178,2]
[311942045,1705511432129,-150.81,0.00019226,2]
[311942046,1705511432138,-150.81,0.00019366,2]
[311942047,1705511432148,-162.35,0.0001937,2]
[311942049,1705511432157,-170.75,0.0001939,2]
[311942051,1705511432166,-150.81,0.00019506,2]
[311942052,1705511432176,-196.85,0.00019587,2]
[311942053,1705511432185,-23900.0,0.00019596,2]
[311942054,1705511432195,-155.33,0.00019598,2]
[311942055,1705511432204,-150.81,0.00019646,2]
[311942056,1705511432214,-8457.25633301,0.00019717,5]
[311942057,1705511432223,-150.0,0.00019726,2]
[311942058,1705511432232,-150.81,0.00019786,2]
[311942059,1705511432242,-425.41,0.00019899,2]
[311942060,1705511432251,-453.25,0.00019923,2]
[311942061,1705511432261,-156.42,0.00019952,2]
[311942062,1705511432271,-164.28,0.0001999,2]
[311942063,1705511432280,-281.17948363,0.0002,2]
[311942064,1705511432289,-171.94541592,0.0002009,2]
[311942065,1705511432589,-150.03,0.0002019,2]
[311942066,1705511432601,-962.72718571,0.000205,2]
[311942067,1705511432612,-196.85,0.00020565,2]
[311942068,1705511432623,-5411.23222198,0.00020575,2]
[311942069,1705511432638,-156.23,0.00020588,2]
[311942070,1705511432649,-874.43633455,0.00020696,2]
[311942071,1705511432659,-156.23,0.00020882,2]
[311942072,1705511432669,-156.42,0.00020902,2]
[311942073,1705511432680,-176.27,0.00020917,2]
[311942074,1705511432690,-256.83,0.00020917,2]
[311942075,1705511432700,-300.0,0.00020988,2]
[311942076,1705511432710,-256.83,0.00021054,2]
[311942077,1705511432721,-232.43216373,0.00021095,2]
[311942078,1705511432732,-449.78012718,0.00021095,2]
[311942079,1705511432743,-155.0,0.00021096,2]
[311942080,1705511432753,-574.59,0.00021108,2]
[311942081,1705511432763,-238.63,0.00021153,2]
[311942082,1705511432774,-167.62,0.00021164,2]
[311942083,1705511432784,-156.23,0.00021176,2]
[311942084,1705511432794,-524.52,0.0002137,2]
[311942085,1705511432805,-161.7327719,0.0002139,2]
[311942086,1705511432815,-176.27,0.00021465,2]
[311942087,1705511432826,-156.23,0.0002147,2]
[311942088,1705511432836,-171.94541592,0.00021492,2]
[311942089,1705511432846,-196.85,0.00021544,2]
[311942090,1705511432857,-4833.65107293,0.00021694,2]
[311942091,1705511432867,-53943.4309,0.00021715,2]
[311942092,1705511432879,-156.23,0.00021764,2]
[311942093,1705511432889,-1265.65286724,0.00021785,2]
[311942094,1705511432898,-1426.2366809,0.00021785,2]
[311942095,1705511432908,-2315.6309702,0.00021785,2]
[311942096,1705511432918,-200.0,0.00021785,2]
[311942097,1705511432927,-155.0,0.00021785,2]
[311942098,1705511432937,-967.48658206,0.00021785,2]
[311942099,1705511432947,-155.0,0.00021785,2]
[311942100,1705511432958,-156.82257641,0.00021785,2]
[311942101,1705511432968,-9852.18909556,0.00021785,2]
[311942102,1705511432977,-549.27735894,0.00021785,2]
[311942103,1705511432988,-3920.35158571,0.00021785,2]
[311942104,1705511432999,-374.60559964,0.00021785,2]
[311942105,1705511433010,-1070.18909292,0.00021785,2]
[311942106,1705511433020,-203.21708329,0.00021785,2]
[311942107,1705511433030,-155.21161762,0.00021785,2]
[311942108,1705511433040,-387.89154707,0.00021786,2]
[311942109,1705511433050,-5271.28765605,0.00021786,2]
[311942110,1705511433059,-1000.0,0.00021787,2]
[311942111,1705511433069,-4922.7318,0.00021787,2]
[311942112,1705511433081,-100000.0,0.00021787,2]
[311942113,1705511433091,-1000.0,0.00021789,2]
[311942114,1705511433101,-245000.0,0.00021815,2]
[311942115,1705511433111,-500.0,0.00021815,2]
[311942116,1705511433120,-158.61316835,0.00021816,2]
[311942117,1705511433132,-250.0,0.00021817,2]
[311942118,1705511433141,-10457.04059483,0.00021817,2]
[311942119,1705511433384,-1177.7496159,0.00021817,2]
[311942120,1705511433397,-30400.8,0.00021817,2]
[311942121,1705511433409,-4236.17914182,0.00021817,2]
[311942130,1705511437822,-5963.57911999,0.00021817,2]
[311942131,1705511437904,-3319.65152746,0.00021817,2]
[311942132,1705511437914,-200.88840202,0.00021817,2]
[311942133,1705511437923,-730.64143422,0.00021817,2]
[311942134,1705511439607,-303.729426,0.00021817,2]
[311942135,1705511439648,-514.21014107,0.00021817,2]
[311942136,1705511439849,-2043.69258217,0.00021817,2]
[311942137,1705511439858,-298.20018203,0.00021817,2]
[311942138,1705511439868,-1277.11849933,0.00021817,2]
[311942139,1705511439877,-156.42,0.00021852,2]
[311942140,1705511439891,-4095.59917609,0.0002189,2]
[311942141,1705511439900,-371.00930961,0.00021913,2]
[311942142,1705511439909,-196.64538108,0.00021914,2]
[311942143,1705511439919,-4633.79492474,0.00021914,2]
[311942144,1705511439929,-210.02475264,0.00021915,2]
[311942145,1705511439938,-251.79665775,0.00021915,2]
[311942146,1705511439948,-474.90888784,0.00021915,2]
[311942148,1705511439958,-993.0757056,0.00021915,2]
[311942149,1705511439967,-155.0,0.00021915,2]
[311942150,1705511439976,-260.92988892,0.00021915,2]
[311942151,1705511439987,-264.83764924,0.00021915,2]
[311942152,1705511439996,-583.74759916,0.00021915,2]
[311942153,1705511440008,-830.69128583,0.00021915,2]
[311942154,1705511440017,-779.93787158,0.00021915,2]
[311942155,1705511440027,-247.6511703,0.00021915,2]
[311942156,1705511440036,-224.16083161,0.00021915,2]
[311942157,1705511440045,-813.30944097,0.00021915,2]
[311942158,1705511440054,-390.30757142,0.00021915,2]
[311942160,1705511440064,-2077.64450979,0.00021915,2]
[311942162,1705511440073,-359.82865023,0.00021915,2]
[311942164,1705511440083,-508.24819466,0.00021915,2]
[311942166,1705511440092,-3235.80657541,0.00021915,4]
[311942168,1705511440102,-92653.79150266,0.00021915,2]
[311942170,1705511440111,-1393.55774875,0.00021916,2]
[311942172,1705511440121,-395.018469,0.00021916,2]
[311942174,1705511440130,-3472.45233989,0.00021916,2]
[311942176,1705511440141,-8181.28732113,0.00021916,2]
[311942178,1705511440150,-500.0,0.00021917,2]
[311942180,1705511440158,-500.0,0.00021917,2]
[311942181,1705511440169,-500.0,0.00021917,2]
[311942183,1705511440178,-503.60482572,0.00021917,2]
[311942185,1705511440188,-500.0,0.00021917,2]
[311942187,1705511440198,-500.0,0.00021917,2]
[311942189,1705511440208,-500.0,0.00021917,2]
[311942191,1705511440218,-500.0,0.00021917,2]
[311942193,1705511440228,-500.0,0.00021917,2]
[311942195,1705511440237,-503.98,0.00021917,2]
[311942198,1705511440248,-500.0,0.00021917,2]
[311942199,1705511440257,-500.0,0.00021917,2]
[311942202,1705511440267,-500.0,0.00021917,2]
[311942203,1705511440278,-500.0,0.00021917,2]
[311942206,1705511440288,-526.99,0.00021917,2]
[311942207,1705511440298,-505.83342155,0.00021917,2]
[311942209,1705511440307,-500.0,0.00021917,2]
[311942211,1705511440317,-500.0,0.00021917,2]
[311942213,1705511440327,-500.0,0.00021917,2]
[311942216,1705511440337,-500.0,0.00021917,2]
[311942218,1705511440346,-500.0,0.00021917,2]
[311942220,1705511440355,-500.0,0.00021917,2]
[311942222,1705511440364,-500.0,0.00021917,2]
[311942224,1705511440373,-500.0,0.00021917,2]
[311942226,1705511440383,-500.0,0.00021917,2]
[311942228,1705511440392,-500.0,0.00021917,2]
[311942230,1705511440401,-500.0,0.00021917,2]
[311942232,1705511440410,-500.0,0.00021917,2]
[311942234,1705511440418,-500.0,0.00021917,2]
[311942236,1705511440428,-500.0,0.00021917,2]
[311942238,1705511440437,-500.0,0.00021917,2]
[311942240,1705511440446,-503.34720043,0.00021917,2]
[311942242,1705511440455,-500.0,0.00021917,2]
[311942243,1705511440464,-504.51093673,0.00021917,2]
[311942246,1705511440476,-500.0,0.00021917,2]
[311942248,1705511440485,-502.97436039,0.00021917,2]
[311942250,1705511440494,-500.0,0.00021917,2]
[311942252,1705511440504,-500.0,0.00021917,2]
[311942253,1705511440514,-500.0,0.00021917,2]
[311942256,1705511440525,-500.0,0.00021917,2]
[311942258,1705511440535,-500.0,0.00021917,2]
[311942260,1705511440544,-500.0,0.00021917,2]
[311942262,1705511440554,-500.0,0.00021917,2]
[311942264,1705511440563,-500.0,0.00021917,2]
[311942266,1705511440573,-500.0,0.00021917,2]
[311942268,1705511440582,-500.0,0.00021917,2]
[311942269,1705511440592,-500.0,0.00021917,2]
[311942271,1705511440602,-201.07,0.00021917,2]
[311942273,1705511440611,-500.0,0.00021917,2]
[311942276,1705511440621,-500.0,0.00021917,2]
[311942277,1705511440632,-500.0,0.00021917,2]
[311942280,1705511440642,-500.0,0.00021917,2]
[311942282,1705511440650,-500.0,0.00021917,2]
[311942284,1705511440659,-500.0,0.00021917,2]
[311942285,1705511440669,-612.56,0.00021917,2]
[311942287,1705511440678,-500.0,0.00021917,2]
[311942289,1705511440687,-500.0,0.00021917,2]
[311942291,1705511440696,-500.0,0.00021917,2]
[311942293,1705511440706,-500.0,0.00021917,2]
[311942295,1705511440716,-527.01525117,0.00021917,2]
[311942298,1705511440725,-500.0,0.00021917,2]
[311942300,1705511440735,-500.0,0.00021917,2]
[311942301,1705511440744,-500.0,0.00021917,2]
[311942303,1705511440753,-500.0,0.00021917,2]
[311942305,1705511440763,-500.0,0.00021917,2]
[311942307,1705511440772,-500.0,0.00021917,2]
[311942309,1705511440781,-150.35067244,0.00021917,2]
[311942312,1705511440790,-500.0,0.00021917,2]
[311942314,1705511440800,-500.0,0.00021917,2]
[311942316,1705511440809,-500.0,0.00021917,2]
[311942318,1705511440818,-500.0,0.00021917,2]
[311942320,1705511440827,-500.0,0.00021917,2]
[311942321,1705511440836,-500.0,0.00021917,2]
[311942323,1705511440845,-500.0,0.00021917,2]
[311942325,1705511440855,-500.12,0.00021917,2]
[311942327,1705511440864,-500.0,0.00021917,2]
[311942329,1705511440873,-500.0,0.00021917,2]
[311942332,1705511440883,-500.0,0.00021917,2]
[311942334,1705511440892,-500.0,0.00021917,2]
[311942336,1705511440902,-500.0,0.00021917,2]
[311942338,1705511440911,-500.0,0.00021917,2]
[311942339,1705511440921,-500.0,0.00021917,2]
[311942341,1705511440930,-500.0,0.00021917,2]
[311942343,1705511440939,-500.0,0.00021917,2]
[311942345,1705511440948,-500.0,0.00021917,2]
[311942348,1705511440958,-500.0,0.00021917,2]
[311942349,1705511440968,-500.0,0.00021917,2]
[311942351,1705511440978,-500.0,0.00021917,2]
[311942353,1705511440990,-500.0,0.00021917,2]
[311942356,1705511440999,-207.09,0.00021917,2]
[311942357,1705511441014,-500.0,0.00021917,2]
[311942359,1705511441024,-500.0,0.00021917,2]
[311942361,1705511441034,-500.0,0.00021917,2]
[311942363,1705511441043,-500.0,0.00021917,2]
[311942365,1705511441053,-500.0,0.00021917,2]
[311942367,1705511441062,-500.0,0.00021917,2]
[311942370,1705511441071,-500.0,0.00021917,2]
[311942372,1705511441081,-274.09,0.00021917,2]
[311942374,1705511441092,-500.0,0.00021917,2]
[311942376,1705511441101,-500.0,0.00021917,2]
[311942378,1705511441111,-500.0,0.00021917,2]
[311942380,1705511441122,-550.01,0.00021917,2]
[311942381,1705511441132,-500.0,0.00021917,2]
[311942383,1705511441141,-500.0,0.00021917,2]
[311942385,1705511441151,-500.0,0.00021917,2]
[311942387,1705511441160,-500.0,0.00021917,2]
[311942389,1705511441169,-500.0,0.00021917,2]
[311942392,1705511441179,-500.0,0.00021917,2]
[311942394,1705511441189,-423.63722183,0.00021917,2]
[311942395,1705511441198,-500.0,0.00021917,2]
[311942397,1705511441207,-500.0,0.00021917,2]
[311942399,1705511441216,-500.0,0.00021917,2]
[311942401,1705511441226,-500.0,0.00021917,2]
[311942404,1705511441236,-536.83,0.00021917,2]
[311942406,1705511441245,-500.0,0.00021917,2]
[311942408,1705511441256,-500.0,0.00021917,2]
[311942409,1705511441266,-500.0,0.00021917,2]
[311942411,1705511441275,-506.98247384,0.00021917,2]
[311942413,1705511441285,-500.0,0.00021917,2]
[311942415,1705511441295,-500.0,0.00021917,2]
[311942417,1705511441304,-500.0,0.00021917,2]
[311942420,1705511441314,-500.0,0.00021917,2]
[311942422,1705511441324,-500.0,0.00021917,2]
[311942423,1705511441333,-500.0,0.00021917,2]
[311942425,1705511441343,-500.0,0.00021917,2]
[311942428,1705511441352,-500.0,0.00021917,2]
[311942430,1705511441361,-200.54,0.00021917,2]
[311942432,1705511441371,-500.0,0.00021917,2]
[311942433,1705511441380,-510.88279594,0.00021917,2]
[311942436,1705511441391,-500.0,0.00021917,2]
[311942438,1705511441401,-500.0,0.00021917,2]
[311942439,1705511441410,-382.49,0.00021917,2]
[311942441,1705511441419,-500.0,0.00021917,2]
[311942444,1705511441429,-500.0,0.00021917,2]
[311942446,1705511441439,-570.28845142,0.00021917,2]
[311942447,1705511441448,-500.0,0.00021917,2]
[311942449,1705511441457,-500.0,0.00021917,2]
[311942451,1705511441466,-500.0,0.00021917,2]
[311942453,1705511441476,-500.0,0.00021917,2]
[311942456,1705511441486,-500.0,0.00021917,2]
[311942458,1705511441496,-500.0,0.00021917,2]
[311942460,1705511441505,-520.05715542,0.00021917,2]
[311942461,1705511441515,-500.0,0.00021917,2]
[311942463,1705511441524,-634.83,0.00021917,2]
[311942466,1705511441534,-500.0,0.00021917,2]
[311942467,1705511441543,-500.0,0.00021917,2]
[311942470,1705511441553,-500.0,0.00021917,2]
[311942472,1705511441562,-500.0,0.00021917,2]
[311942474,1705511441571,-447.38,0.00021917,2]
[311942476,1705511441580,-500.0,0.00021917,2]
[311942477,1705511441591,-500.0,0.00021917,2]
[311942479,1705511441601,-500.0,0.00021917,2]
[311942482,1705511441610,-500.0,0.00021917,2]
[311942483,1705511441619,-426.69,0.00021917,2]
[311942485,1705511441629,-353.43,0.00021917,2]
[311942488,1705511441641,-500.0,0.00021917,2]
[311942490,1705511441650,-500.0,0.00021917,2]
[311942492,1705511441658,-517.61,0.00021917,2]
[311942508,1705511441873,-500.0,0.00021917,2]
[311942510,1705511441883,-500.0,0.00021917,2]
[311942512,1705511441893,-500.0,0.00021917,2]
[311942514,1705511441903,-500.0,0.00021917,2]
[311942516,1705511441912,-500.0,0.00021917,2]
[311942518,1705511441922,-500.0,0.00021917,2]
[311942520,1705511441931,-500.0,0.00021917,2]
[311942522,1705511441941,-500.0,0.00021917,2]
[311942524,1705511441950,-532.48,0.00021917,2]
[311942526,1705511441960,-500.0,0.00021917,2]
[311942528,1705511441969,-500.0,0.00021917,2]
[311942530,1705511441978,-500.0,0.00021917,2]
[311942532,1705511441991,-500.0,0.00021917,2]
[311942534,1705511442002,-500.0,0.00021917,2]
[311942536,1705511442011,-500.0,0.00021917,2]
[311942538,1705511442020,-358.86,0.00021917,2]
[311942540,1705511442030,-500.0,0.00021917,2]
[311942542,1705511442039,-483.32,0.00021917,2]
[311942544,1705511442049,-500.0,0.00021917,2]
[311942546,1705511442059,-500.0,0.00021917,2]
[311942548,1705511442068,-500.0,0.00021917,2]
[311942550,1705511442078,-500.0,0.00021917,2]
[311942552,1705511442089,-300.0,0.00021917,2]
[311942555,1705511442098,-500.0,0.00021917,2]
[311942557,1705511442108,-500.0,0.00021917,2]
[311942559,1705511442117,-500.0,0.00021917,2]
[311942560,1705511442126,-500.0,0.00021917,2]
[311942562,1705511442136,-500.0,0.00021917,2]
[311942565,1705511442145,-500.0,0.00021917,2]
[311942567,1705511442155,-500.0,0.00021917,2]
[311942569,1705511442164,-500.0,0.00021917,2]
[311942571,1705511442174,-500.0,0.00021917,2]
[311942572,1705511442182,-500.0,0.00021917,2]
[311942575,1705511442192,-500.0,0.00021917,2]
[311942576,1705511442201,-500.0,0.00021917,2]
[311942579,1705511442211,-500.0,0.00021917,2]
[311942580,1705511442220,-500.0,0.00021917,2]
[311942583,1705511442229,-500.0,0.00021917,2]
[311942585,1705511442239,-214.53142473,0.00021917,2]
[311942587,1705511442248,-500.0,0.00021917,2]
[311942589,1705511442257,-500.0,0.00021917,2]
[311942591,1705511442266,-500.0,0.00021917,2]
[311942593,1705511442275,-611.53,0.00021917,2]
[311942595,1705511442284,-500.0,0.00021917,2]
[311942597,1705511442294,-500.0,0.00021917,2]
[311942599,1705511442303,-500.0,0.00021917,2]
[311942601,1705511442312,-500.0,0.00021917,2]
[311942603,1705511442321,-558.8,0.00021917,2]
[311942605,1705511442330,-643.72,0.00021917,2]
[311942607,1705511442339,-500.0,0.00021917,2]
[311942609,1705511442348,-500.0,0.00021917,2]
[311942611,1705511442358,-500.0,0.00021917,2]
[311942612,1705511442367,-500.0,0.00021917,2]
[311942615,1705511442377,-500.0,0.00021917,2]
[311942616,1705511442388,-500.0,0.00021917,2]
[311942619,1705511442398,-509.00688569,0.00021917,2]
[311942621,1705511442411,-500.0,0.00021917,2]
[311942622,1705511442420,-500.0,0.00021917,2]
[311942625,1705511442431,-500.0,0.00021917,2]
[311942627,1705511442442,-500.0,0.00021917,2]
[311942628,1705511442452,-500.0,0.00021917,2]
[311942630,1705511442461,-500.0,0.00021917,2]
[311942633,1705511442471,-521.56,0.00021917,2]
[311942635,1705511442480,-500.0,0.00021917,2]
[311942637,1705511442490,-500.0,0.00021917,2]
[311942638,1705511442499,-500.0,0.00021917,2]
[311942640,1705511442508,-500.0,0.00021917,2]
[311942643,1705511442518,-556.84,0.00021917,2]
[311942644,1705511442527,-503.46933585,0.00021917,2]
[311942646,1705511442537,-500.0,0.00021917,2]
[311942650,1705511442547,-525.29686406,0.00021917,2]
[311942652,1705511442556,-186.33,0.00021917,2]
[311942656,1705511442566,-500.0,0.00021917,2]
[311942657,1705511442576,-186.23,0.00021917,2]
[311942660,1705511442585,-500.0,0.00021917,2]
[311942661,1705511442595,-500.0,0.00021917,2]
[311942663,1705511442605,-500.0,0.00021917,2]
[311942666,1705511442615,-500.0,0.00021917,2]
[311942669,1705511442624,-500.0,0.00021917,2]
[311942671,1705511442635,-500.0,0.00021917,2]
[311942674,1705511442644,-400.67,0.00021917,2]
[311942678,1705511442654,-500.0,0.00021917,2]
[311942680,1705511442663,-500.0,0.00021917,2]
[311942682,1705511442675,-500.0,0.00021917,2]
[311942685,1705511442685,-500.0,0.00021917,2]
[311942689,1705511442694,-500.0,0.00021917,2]
[311942692,1705511442703,-484.91,0.00021917,2]
[311942695,1705511442712,-500.0,0.00021917,2]
[311942699,1705511442722,-500.0,0.00021917,2]
[311942703,1705511442731,-391.89,0.00021917,2]
[311942708,1705511442741,-500.0,0.00021917,2]
[311942712,1705511442750,-500.0,0.00021917,2]
[311942716,1705511442759,-500.0,0.00021917,2]
[311942719,1705511442768,-500.0,0.00021917,2]
[311942723,1705511442778,-520.51766552,0.00021917,2]
[311942727,1705511442787,-500.0,0.00021917,2]
[311942732,1705511442797,-500.0,0.00021917,2]
[311942736,1705511442806,-500.0,0.00021917,2]
[311942739,1705511442815,-500.0,0.00021917,2]
[311942742,1705511442825,-500.0,0.00021917,2]
[311942744,1705511442834,-513.6348398,0.00021917,2]
[311942747,1705511442843,-484.58695073,0.00021917,2]
[311942749,1705511442852,-500.0,0.00021917,2]
[311942752,1705511442862,-505.39871356,0.00021917,2]
[311942755,1705511442872,-500.0,0.00021917,2]
[311942757,1705511442881,-500.0,0.00021917,2]
[311942760,1705511442892,-500.0,0.00021917,2]
[311942762,1705511442900,-500.0,0.00021917,2]
[311942764,1705511442909,-500.0,0.00021917,2]
[311942766,1705511442919,-500.0,0.00021917,2]
[311942768,1705511442928,-500.0,0.00021917,2]
[311942770,1705511442937,-500.0,0.00021917,2]
[311942772,1705511442946,-500.0,0.00021917,2]
[311942774,1705511442956,-500.0,0.00021917,2]
[311942776,1705511442965,-500.0,0.00021917,2]
[311942778,1705511442974,-230.06,0.00021917,2]
[311942780,1705511442983,-515.65118876,0.00021917,2]
[311942782,1705511442992,-500.0,0.00021917,2]
[311942783,1705511443005,-500.0,0.00021917,2]
[311942786,1705511443015,-500.0,0.00021917,2]
[311942788,1705511443025,-500.0,0.00021917,2]
[311942789,1705511443034,-500.0,0.00021917,2]
[311942792,1705511443044,-500.0,0.00021917,2]
[311942794,1705511443053,-500.0,0.00021917,2]
[311942796,1705511443062,-500.0,0.00021917,2]
[311942797,1705511443071,-500.0,0.00021917,2]
[311942800,1705511443081,-500.0,0.00021917,2]
[311942801,1705511443091,-500.0,0.00021917,2]
[311942804,1705511443100,-500.0,0.00021917,2]
[311942806,1705511443110,-519.88,0.00021917,2]
[311942808,1705511443119,-500.0,0.00021917,2]
[311942809,1705511443128,-500.0,0.00021917,2]
[311942811,1705511443138,-500.0,0.00021917,2]
[311942813,1705511443148,-500.0,0.00021917,2]
[311942815,1705511443157,-500.0,0.00021917,2]
[311942817,1705511443166,-642.16,0.00021917,2]
[311942819,1705511443175,-577.25,0.00021917,2]
[311942821,1705511443185,-500.0,0.00021917,2]
[311942824,1705511443194,-500.0,0.00021917,2]
[311942825,1705511443203,-500.0,0.00021917,2]
[311942828,1705511443213,-500.0,0.00021917,2]
[311942829,1705511443222,-500.0,0.00021917,2]
[311942831,1705511443231,-540.64,0.00021917,2]
[311942833,1705511443241,-500.0,0.00021917,2]
[311942836,1705511443251,-500.0,0.00021917,2]
[311942838,1705511443261,-500.0,0.00021917,2]
[311942839,1705511443270,-500.0,0.00021917,2]
[311942842,1705511443280,-567.6,0.00021917,2]
[311942843,1705511443289,-500.0,0.00021917,2]
[311942846,1705511443300,-500.0,0.00021917,2]
[311942847,1705511443310,-500.0,0.00021917,2]
[311942848,1705511443320,-500.0,0.00021917,2]
[311942850,1705511443329,-500.0,0.00021917,2]
[311942853,1705511443339,-500.0,0.00021917,2]
[311942855,1705511443349,-500.0,0.00021917,2]
[311942858,1705511443358,-507.52961282,0.00021917,2]
[311942861,1705511443367,-500.0,0.00021917,2]
[311942865,1705511443377,-630.33,0.00021917,2]
[311942869,1705511443387,-500.0,0.00021917,2]
[311942873,1705511443396,-500.0,0.00021917,2]
[311942876,1705511443405,-500.0,0.00021917,2]
[311942879,1705511443415,-500.0,0.00021917,2]
[311942882,1705511443424,-500.0,0.00021917,2]
[311942884,1705511443434,-251.78,0.00021917,2]
[311942886,1705511443443,-500.0,0.00021917,2]
[311942888,1705511443453,-500.0,0.00021917,2]
[311942890,1705511443462,-500.0,0.00021917,2]
[311942892,1705511443471,-289.1,0.00021917,2]
[311942894,1705511443480,-500.0,0.00021917,2]
[311942896,1705511443489,-500.0,0.00021917,2]
[311942898,1705511443500,-331.08236596,0.00021917,2]
[311942900,1705511443509,-500.0,0.00021917,2]
[311942902,1705511443518,-500.0,0.00021917,2]
[311942904,1705511443527,-500.0,0.00021917,2]
[311942906,1705511443536,-500.0,0.00021917,2]
[311942908,1705511443545,-500.0,0.00021917,2]
[311942910,1705511443554,-500.0,0.00021917,2]
[311942912,1705511443563,-500.0,0.00021917,2]
[311942914,1705511443572,-500.0,0.00021917,2]
[311942916,1705511443581,-526.55,0.00021917,2]
[311942918,1705511443593,-539.32,0.00021917,2]
[311942920,1705511443602,-500.0,0.00021917,2]